fUST/lending_fUST_20251028
["ID","MTS","AMOUNT","RATE_DAILY","PERIOD"]
[392508897,1761591039292,-500.0,0.00015059,2]
[392508898,1761591039306,-259.36248541,0.00015059,2]
[392508899,1761591039315,-17446.5031624,0.00015065,2]
[392508900,1761591039324,-151.0,0.00015065,2]
[392508901,1761591039335,-151.0,0.00015065,2]
[392508902,1761591039344,-161.146462,0.00015065,2]
[392508903,1761591039354,-8458.1908357,0.00015066,2]
[392508904,1761591039363,-190.2085625,0.00015066,2]
[392508905,1761591039372,-500.0,0.00015237,2]
[392508906,1761591039383,-500.0,0.00015274,2]
[392508907,1761591039400,-1034.15669316,0.00015305,2]
[392508908,1761591039417,-300.0,0.0001546,2]
[392508909,1761591039435,-300.0,0.0001546,2]
[392508910,1761591039455,-300.0,0.0001546,2]
[392508911,1761591039476,-300.0,0.0001546,2]
[392508912,1761591039493,-300.0,0.0001546,2]
[392508913,1761591039511,-300.0,0.0001546,2]
[392508914,1761591039529,-300.0,0.0001546,2]
[392508915,1761591039545,-300.0,0.0001546,2]
[392508916,1761591039564,-300.0,0.0001546,2]
[392508917,1761591039585,-300.0,0.0001546,2]
[392508918,1761591039599,-300.0,0.0001546,2]
[392508919,1761591039616,-300.0,0.0001546,2]
[392508920,1761591039631,-300.0,0.0001546,2]
[392508921,1761591039648,-300.0,0.0001546,2]
[392508922,1761591039660,-300.0,0.0001546,2]
[392508923,1761591039674,-600.0,0.0001546,2]
[392508924,1761591039692,-31862.48368633,0.00015474,2]
[392508925,1761591039707,-500.0,0.00015511,2]
[392508926,1761591039722,-500.0,0.00015548,2]
[392508927,1761591039737,-1000.0,0.00015548,2]
[392508929,1761591039753,-1000.0,0.00015548,2]
[392508930,1761591039767,-1000.0,0.00015548,2]
[392508931,1761591039784,-1000.0,0.00015591,2]
[392508932,1761591039800,-500.0,0.00015591,2]
[392508933,1761591039814,-1028.13691268,0.00015591,2]
[392508934,1761591039829,-151.0,0.00015591,2]
[392508935,1761591039844,-500.0,0.00015591,2]
[392508937,1761591039859,-265.78659564,0.00015591,2]
[392508938,1761591039873,-500.0,0.00015591,2]
[392508939,1761591039889,-191.87295522,0.00015591,2]
[392508940,1761591039904,-500.0,0.00015591,2]
[392508941,1761591039919,-492.64494717,0.00015591,2]
[392508942,1761591039934,-1527.63191913,0.00015591,2]
[392508943,1761591039949,-1000.0,0.00015591,2]
[392508945,1761591039964,-1000.0,0.00015591,2]
[392508947,1761591039979,-1000.0,0.00015591,2]
[392508948,1761591039993,-1000.0,0.00015591,2]
[392508949,1761591040007,-1000.0,0.00015591,2]
[392508950,1761591040022,-1000.0,0.00015591,2]
[392508951,1761591040038,-1000.0,0.00015591,2]
[392508952,1761591040054,-1000.0,0.00015591,2]
[392508953,1761591040068,-1000.0,0.00015591,2]
[392508954,1761591040084,-1000.0,0.00015591,2]
[392508955,1761591040100,-1000.0,0.00015591,2]
[392508956,1761591040115,-1000.0,0.00015591,2]
[392508957,1761591040131,-1000.0,0.00015591,2]
[392508958,1761591040145,-1000.0,0.00015591,2]
[392508959,1761591040160,-1000.0,0.00015591,2]
[392508960,1761591040174,-1000.0,0.00015591,2]
[392508961,1761591040188,-1000.0,0.00015591,2]
[392508962,1761591040204,-1000.0,0.00015591,2]
[392508963,1761591040219,-1000.0,0.00015591,2]
[392508964,1761591040233,-1000.0,0.00015591,2]
[392508967,1761591040249,-500.0,0.00015785,2]
[392508968,1761591040265,-500.0,0.00015822,2]
[392508970,1761591040281,-500.0,0.00016059,2]
[392508972,1761591040296,-500.0,0.00016096,2]
[392508973,1761591040311,-1500.0,0.00016096,2]
[392508974,1761591040327,-1500.0,0.00016096,2]
[392508976,1761591040342,-1088.59416845,0.00016096,2]
[392508977,1761591040357,-198.97225457,0.00016139,2]
[392508978,1761591040372,-228.93682814,0.00016275,2]
[392508979,1761591040390,-420.0,0.00016372,2]
[392508981,1761591040405,-968.88029842,0.00016403,2]
[392508982,1761591040420,-151.0,0.00016438,2]
[392508983,1761591040437,-262.78653592,0.00016438,2]
[392508984,1761591040452,-500.0,0.00016438,2]
[392508985,1761591040469,-151.0,0.00016446,2]
[392508986,1761591040484,-151.0,0.00016446,2]
[392508987,1761591040499,-366.0,0.00016455,2]
[392508988,1761591040513,-200.35276751,0.00016493,2]
[392508991,1761591040665,-500.0,0.00016493,2]
[392508993,1761591040685,-2654.62703472,0.0001651,2]
[392508994,1761591040697,-500.0,0.00016548,2]
[392508995,1761591040707,-151.0,0.00016571,2]
[392508996,1761591040716,-446.49,0.00016571,2]
[392508997,1761591040725,-500.0,0.00016602,2]
[392508998,1761591040735,-653.41703147,0.00016632,2]
[392508999,1761591040746,-2000.0,0.00016644,2]
[392509000,1761591040756,-2000.0,0.00016644,2]
[392509001,1761591040766,-500.0,0.00016657,2]
[392509002,1761591040776,-441.1615874,0.0001666,2]
[392509003,1761591040789,-168.54296332,0.00016671,2]
[392509004,1761591040801,-155.0,0.00016678,2]
[392509005,1761591040812,-206.33422799,0.00016687,2]
[392509006,1761591040823,-190.2085625,0.00016687,2]
[392509007,1761591040834,-1887.2774757,0.00016812,2]
[392509008,1761591040846,-154.04694106,0.00016814,2]
[392509009,1761591040856,-1407.93829889,0.00016851,2]
[392509010,1761591040866,-403.5761775,0.00016883,2]
[392509011,1761591040876,-160.0,0.00016883,2]
[392509012,1761591040886,-196.0,0.00016904,2]
[392509013,1761591040897,-337.68860601,0.00016984,2]
[392509014,1761591040907,-155.0,0.00017005,2]
[392509015,1761591040916,-720.0,0.00017006,2]
[392509016,1761591040926,-2611.05445775,0.00017038,2]
[392509017,1761591040936,-1350.75442404,0.00017082,2]
[392509018,1761591040947,-3039.19745409,0.00017181,2]
[392509019,1761591040957,-2500.0,0.00017192,2]
[392509020,1761591040967,-2500.0,0.00017192,2]
[392509021,1761591040979,-421.1085254,0.00017201,2]
[392509022,1761591040989,-213.96859442,0.00017235,2]
[392509023,1761591040999,-5403.01769616,0.0001728,2]
[392509024,1761591041009,-8433.7729351,0.00017379,2]
[392509025,1761591041019,-491.2879015,0.00017388,2]
[392509026,1761591041028,-151.051806,0.0001745,3]
[392509027,1761591041038,-3892.8410446,0.00017484,2]
[392509028,1761591041048,-196.0,0.00017502,2]
[392509029,1761591041058,-3000.0,0.0001774,2]
[392509030,1761591041067,-3000.0,0.0001774,2]
[392509031,1761591041076,-1000.0,0.0001774,2]
[392509032,1761591041086,-1000.0,0.0001774,2]
[392509033,1761591041096,-1000.0,0.0001774,2]
[392509034,1761591041105,-1000.0,0.0001774,2]
[392509035,1761591041115,-1000.0,0.0001774,2]
[392509036,1761591041123,-1000.0,0.0001774,2]
[392509037,1761591041133,-1000.0,0.0001774,2]
[392509038,1761591041142,-1000.0,0.0001774,2]
[392509039,1761591041151,-1000.0,0.0001774,2]
[392509040,1761591041161,-1000.0,0.0001774,2]
[392509041,1761591041170,-1000.0,0.0001774,2]
[392509042,1761591041179,-1000.0,0.0001774,2]
[392509043,1761591041189,-1000.0,0.0001774,2]
[392509044,1761591041199,-1000.0,0.0001774,2]
[392509045,1761591041208,-1000.0,0.0001774,2]
[392509046,1761591041218,-1000.0,0.0001774,2]
[392509047,1761591041227,-1000.0,0.0001774,2]
[392509048,1761591041238,-1000.0,0.0001774,2]
[392509049,1761591041247,-1000.0,0.0001774,2]
[392509050,1761591041256,-1000.0,0.0001774,2]
[392509051,1761591041266,-1000.0,0.0001774,2]
[392509052,1761591041275,-1000.0,0.0001774,2]
[392509053,1761591041284,-1000.0,0.0001774,2]
[392509054,1761591041294,-1000.0,0.0001774,2]
[392509055,1761591041304,-1000.0,0.0001774,2]
[392509056,1761591041315,-1000.0,0.0001774,2]
[392509057,1761591041324,-1000.0,0.0001774,2]
[392509058,1761591041334,-1000.0,0.0001774,2]
[392509059,1761591041343,-173.309151,0.0001774,2]
[392509060,1761591041353,-151.051806,0.00017746,2]
[392509061,1761591041362,-958.363,0.00017749,2]
[392509062,1761591041372,-1415.82044764,0.00017761,2]
[392509063,1761591041382,-185.25657208,0.000178,2]
[392509064,1761591041396,-151.0,0.00017913,2]
[392509065,1761591041406,-151.0,0.00017913,2]
[392509066,1761591041415,-587.0,0.00017919,2]
[392509067,1761591041426,-168.0,0.00017927,2]
[392509068,1761591041436,-1965.15160601,0.00017927,2]
[392509069,1761591041446,-340.0,0.00017961,2]
[392509070,1761591041455,-777.43324848,0.00018,2]
[392509071,1761591041467,-868.6102457,0.00018023,2]
[392509072,1761591041476,-263.57034596,0.000181,2]
[392509073,1761591041486,-180.02520353,0.00018122,2]
[392509074,1761591041495,-151.051806,0.00018175,3]
[392509075,1761591041504,-152.278764,0.00018175,3]
[392509076,1761591041514,-777.43324848,0.000182,2]
[392509077,1761591041523,-426.0,0.00018205,2]
[392509078,1761591041533,-168.0,0.00018236,2]
[392509079,1761591041543,-426.0,0.00018272,2]
[392509080,1761591041552,-426.0,0.00018275,2]
[392509081,1761591041561,-426.0,0.00018278,2]
[392509082,1761591041571,-3500.0,0.00018288,2]
[392509083,1761591041580,-3500.0,0.00018288,2]
[392509084,1761591041590,-190.2085625,0.00018309,2]
[392509085,1761591041600,-426.0,0.00018382,2]
[392509086,1761591041610,-777.43324848,0.000184,2]
[392509087,1761591041619,-426.0,0.00018463,2]
[392509088,1761591041628,-4421.59111352,0.00018466,2]
[392509089,1761591041638,-777.43324848,0.000185,2]
[392509090,1761591041647,-1125.352234,0.000185,2]
[392509091,1761591041657,-426.0,0.00018557,2]
[392509092,1761591041667,-426.0,0.00018607,2]
[392509093,1761591041676,-165.327805,0.0001863,2]
[392509094,1761591041685,-777.43324848,0.000187,2]
[392509095,1761591041697,-864.0,0.00018707,2]
[392509096,1761591041707,-168.0,0.00018736,2]
[392509097,1761591041716,-426.0,0.00018798,2]
[392509098,1761591041725,-4000.0,0.00018836,2]
[392509099,1761591041735,-4000.0,0.00018836,2]
[392509100,1761591041745,-1622.70854787,0.00018851,2]
[392509101,1761591041754,-151.051806,0.00018873,2]
[392509102,1761591041763,-152.278764,0.00018873,2]
[392509103,1761591041773,-151.051806,0.000189,3]
[392509104,1761591041782,-152.278764,0.000189,3]
[392509105,1761591041791,-302.93942128,0.000189,2]
[392509106,1761591041801,-1000.0,0.00019,2]
[392509107,1761591041811,-7852.74581761,0.00019005,2]
[392509108,1761591041821,-151.0,0.00019057,2]
[392509109,1761591041831,-168.0,0.00019086,2]
[392509110,1761591041840,-1862.76059685,0.0001912,2]
[392509111,1761591041850,-168.0,0.00019167,2]
[392509112,1761591041860,-151.0,0.00019178,2]
[392509113,1761591041870,-679.941017,0.00019178,2]
[392509114,1761591041879,-679.941017,0.00019178,2]
[392509115,1761591041890,-679.941017,0.00019178,2]
[392509116,1761591041900,-679.941017,0.00019178,2]
[392509117,1761591041909,-679.941017,0.00019178,2]
[392509118,1761591041919,-679.941017,0.00019178,2]
[392509119,1761591041928,-679.941017,0.00019178,2]
[392509120,1761591041939,-679.941017,0.00019178,2]
[392509121,1761591041948,-679.941017,0.00019178,2]
[392509122,1761591041958,-679.941017,0.00019178,2]
[392509123,1761591041968,-679.941017,0.00019178,2]
[392509124,1761591041978,-679.941017,0.00019178,2]
[392509125,1761591041988,-151.0,0.00019178,2]
[392509126,1761591041999,-151.0,0.00019178,2]
[392509127,1761591042008,-151.0,0.00019178,2]
[392509128,1761591042017,-248.735712,0.00019178,2]
[392509129,1761591042027,-187.798514,0.00019178,2]
[392509130,1761591042036,-187.798514,0.00019178,2]
[392509131,1761591042046,-187.798514,0.00019178,2]
[392509132,1761591042056,-187.798514,0.00019178,2]
[392509133,1761591042066,-187.798514,0.00019178,2]
[392509134,1761591042075,-187.798514,0.00019178,2]
[392509135,1761591042084,-187.798514,0.00019178,2]
[392509136,1761591042093,-187.798514,0.00019178,2]
[392509137,1761591042103,-187.798514,0.00019178,2]
[392509138,1761591042112,-187.798514,0.00019178,2]
[392509139,1761591042123,-187.798514,0.00019178,2]
[392509140,1761591042133,-187.798514,0.00019178,2]
[392509141,1761591042142,-187.798514,0.00019178,2]
[392509142,1761591042151,-187.798514,0.00019178,2]
[392509143,1761591042163,-187.798514,0.00019178,2]
[392509144,1761591042173,-187.798514,0.00019178,2]
[392509145,1761591042183,-197.525194,0.00019178,2]
[392509146,1761591042193,-197.525194,0.00019178,2]
[392509147,1761591042203,-197.525194,0.00019178,2]
[392509148,1761591042212,-197.525194,0.00019178,2]
[392509149,1761591042222,-197.525194,0.00019178,2]
[392509150,1761591042232,-197.525194,0.00019178,2]
[392509151,1761591042241,-197.525194,0.00019178,2]
[392509152,1761591042251,-197.525194,0.00019178,2]
[392509153,1761591042260,-197.525194,0.00019178,2]
[392509154,1761591042270,-197.525194,0.00019178,2]
[392509155,1761591042281,-197.525194,0.00019178,2]
[392509156,1761591042292,-197.525194,0.00019178,2]
[392509157,1761591042302,-197.525194,0.00019178,2]
[392509158,1761591042312,-197.525194,0.00019178,2]
[392509159,1761591042322,-197.525194,0.00019178,2]
[392509160,1761591042332,-197.525194,0.00019178,2]
[392509161,1761591042341,-299.247273,0.00019178,2]
[392509162,1761591042351,-151.0,0.00019178,2]
[392509163,1761591042362,-151.0,0.00019178,2]
[392509164,1761591042372,-151.0,0.00019178,2]
[392509165,1761591042383,-151.0,0.00019178,2]
[392509166,1761591042395,-151.0,0.00019178,2]
[392509167,1761591042404,-151.0,0.00019178,2]
[392509168,1761591042414,-299.41906131,0.00019178,2]
[392509169,1761591042423,-152.731337,0.00019178,2]
[392509170,1761591042432,-153.171209,0.00019178,2]
[392509171,1761591042444,-534.290676,0.00019178,2]
[392509172,1761591042453,-534.290676,0.00019178,2]
[392509173,1761591042464,-534.290676,0.00019178,2]
[392509174,1761591042575,-534.290676,0.00019178,2]
[392509175,1761591042584,-534.290676,0.00019178,2]
[392509176,1761591042595,-1108.269953,0.00019178,2]
[392509177,1761591042606,-534.290676,0.00019178,2]
[392509178,1761591042615,-1108.269953,0.00019178,2]
[392509179,1761591042624,-534.290676,0.00019178,2]
[392509180,1761591042634,-1108.269953,0.00019178,2]
[392509181,1761591042644,-534.290676,0.00019178,2]
[392509182,1761591042654,-1108.269953,0.00019178,2]
[392509183,1761591042663,-534.290676,0.00019178,2]
[392509184,1761591042673,-1108.269953,0.00019178,2]
[392509185,1761591042682,-534.290676,0.00019178,2]
[392509186,1761591042691,-1108.269953,0.00019178,2]
[392509187,1761591042700,-534.290676,0.00019178,2]
[392509188,1761591042710,-1108.269953,0.00019178,2]
[392509189,1761591042719,-534.290676,0.00019178,2]
[392509190,1761591042728,-1108.269953,0.00019178,2]
[392509191,1761591042737,-534.290676,0.00019178,2]
[392509192,1761591042747,-1108.269953,0.00019178,2]
[392509193,1761591042757,-534.290676,0.00019178,2]
[392509194,1761591042766,-1108.269953,0.00019178,2]
[392509195,1761591042775,-534.290676,0.00019178,2]
[392509196,1761591042784,-1108.269953,0.00019178,2]
[392509197,1761591042794,-534.290676,0.00019178,2]
[392509198,1761591042803,-1108.269953,0.00019178,2]
[392509199,1761591042812,-1108.269953,0.00019178,2]
[392509200,1761591042821,-1108.269953,0.00019178,2]
[392509201,1761591042831,-1108.269953,0.00019178,2]
[392509202,1761591042840,-1108.269953,0.00019178,2]
[392509203,1761591042850,-151.0,0.00019178,2]
[392509204,1761591042859,-226.467132,0.00019178,2]
[392509205,1761591042868,-151.0,0.00019178,2]
[392509206,1761591042878,-160.0,0.000192,2]
[392509207,1761591042887,-426.0,0.00019265,2]
[392509208,1761591042897,-304.68811614,0.00019315,2]
[392509209,1761591042907,-4500.0,0.00019384,2]
[392509210,1761591042918,-3877.75336372,0.00019384,2]
[392509212,1761591042928,-151.0,0.00019384,7]
[392509214,1761591042938,-154.371137,0.00019384,7]
[392509215,1761591042947,-679.941017,0.00019384,7]
[392509216,1761591042956,-679.941017,0.00019384,7]
[392509217,1761591042966,-679.941017,0.00019384,7]
[392509218,1761591042976,-679.941017,0.00019384,7]
[392509219,1761591042986,-168.0,0.00019411,2]
[392509220,1761591042995,-1000.0,0.000195,2]
[392509221,1761591043006,-823.0,0.00019612,2]
[392509222,1761591043015,-168.0,0.00019626,2]
[392509223,1761591043024,-260.0,0.00019748,2]
[392509224,1761591043034,-426.0,0.00019763,2]
[392509225,1761591043043,-168.0,0.00019765,2]
[392509226,1761591043053,-426.0,0.00019854,2]
[392509227,1761591043062,-426.0,0.00019882,2]
[392509228,1761591043072,-190.2085625,0.0001993,2]
[392509230,1761591043080,-5000.0,0.00019932,2]
[392509232,1761591043089,-151.0,0.00019932,7]
[392509234,1761591043099,-534.290676,0.00019932,7]
[392509235,1761591043108,-534.290676,0.00019932,7]
[392509236,1761591043117,-1108.269953,0.00019932,7]
[392509237,1761591043127,-534.290676,0.00019932,7]
[392509239,1761591043136,-1108.269953,0.00019932,7]
[392509241,1761591043145,-534.290678,0.00019932,7]
[392509242,1761591043155,-1108.269953,0.00019932,7]
[392509243,1761591043164,-1108.26995997,0.00019932,7]
[392509244,1761591043174,-426.0,0.00019936,2]
[392509245,1761591043184,-9372.77846056,0.0002,7]
[392509246,1761591043194,-1020.53671949,0.0002,10]
[392509247,1761591043204,-287.1348086,0.0002,14]
[392509248,1761591043215,-17781.461544,0.0002,2]
[392509249,1761591043224,-339.19251776,0.0002,2]
[392509250,1761591043234,-45000.0,0.0002,2]
[392509251,1761591043245,-403.5761775,0.0002,7]
[392509252,1761591043255,-2950.3051157,0.0002,20]
[392509253,1761591043265,-320.88853862,0.0002,2]
[392509254,1761591043276,-1057.0,0.0002,2]
[392509255,1761591043285,-300.00050047,0.0002,7]
[392509256,1761591043295,-152.625312,0.0002,7]
[392509257,1761591043304,-151.0,0.0002,7]
[392509258,1761591043313,-151.051806,0.0002,2]
[392509259,1761591043323,-151.051806,0.0002,7]
[392509260,1761591043332,-151.051806,0.0002,7]
[392509261,1761591043341,-151.0,0.0002,7]
[392509262,1761591043353,-679.941017,0.0002,7]
[392509263,1761591043362,-679.941017,0.0002,7]
[392509264,1761591043372,-679.941017,0.0002,7]
[392509265,1761591043381,-679.941024,0.0002,7]
[392509266,1761591043394,-316.50094678,0.0002,2]
[392509267,1761591043403,-1000.0,0.0002,2]
[392509268,1761591043413,-151.53485105,0.0002,2]
[392509269,1761591043422,-250.0,0.0002,10]
[392509270,1761591043432,-187.798514,0.0002,7]
[392509271,1761591043442,-187.798514,0.0002,7]
[392509272,1761591043451,-187.798514,0.0002,7]
[392509273,1761591043461,-187.798511,0.0002,7]
[392509274,1761591043471,-197.525194,0.0002,2]
[392509275,1761591043480,-197.525194,0.0002,2]
[392509276,1761591043490,-197.525194,0.0002,2]
[392509277,1761591043499,-197.525186,0.0002,2]
[392509278,1761591043509,-152.278764,0.0002,2]
[392509279,1761591043518,-152.278764,0.0002,7]
[392509280,1761591043528,-152.278764,0.0002,7]
[392509281,1761591043537,-2000.0,0.0002,7]
[392509282,1761591043546,-168.0,0.00020005,2]
[392509283,1761591043556,-168.0,0.00020022,2]
[392509284,1761591043565,-168.0,0.00020085,2]
[392509285,1761591043576,-250.0,0.000201,10]
[392509286,1761591043586,-505.499902,0.00020187,2]
[392509287,1761591043597,-250.0,0.000202,10]
[392509288,1761591043607,-360.0,0.00020296,2]
[392509289,1761591043617,-2000.0,0.000203,2]
[392509290,1761591043626,-250.0,0.000203,10]
[392509291,1761591043635,-250.0,0.000204,10]
[392509292,1761591043646,-2309.70074606,0.00020479,2]
[392509293,1761591043656,-5500.0,0.00020479,2]
[392509294,1761591043666,-250.0,0.000205,10]
[392509295,1761591043677,-151.0,0.00020548,7]
[392509296,1761591043687,-161.844852,0.00020548,7]
[392509297,1761591043698,-1000.0,0.00020577,2]
[392509298,1761591043707,-151.0,0.000206,3]
[392509299,1761591043718,-250.0,0.000206,10]
[392509300,1761591043728,-1376.51273159,0.0002061,2]
[392509301,1761591043738,-250.0,0.000207,10]
[392509302,1761591043747,-250.0,0.000208,10]
[392509303,1761591043756,-460.0,0.00020844,2]
[392509304,1761591043765,-1837.47879686,0.00020851,2]
[392509305,1761591043775,-253.90707322,0.000209,2]
[392509306,1761591043785,-250.0,0.000209,10]
[392509307,1761591043794,-848.48874081,0.00021,10]
[392509308,1761591043804,-274.4524935,0.00021,2]
[392509309,1761591043813,-4488.84404236,0.00021,5]
[392509310,1761591043824,-205.33374293,0.00021,2]
[392509311,1761591043834,-4500.0,0.00021,2]
[392509312,1761591043843,-3000.0,0.00021,2]
[392509313,1761591043852,-250.0,0.00021,10]
[392509314,1761591043862,-3000.0,0.0002101,2]
[392509315,1761591043872,-3000.0,0.0002102,2]
[392509316,1761591043883,-4239.97005597,0.00021027,2]
[392509317,1761591043893,-3000.0,0.0002103,2]
[392509318,1761591043903,-3000.0,0.0002104,2]
[392509319,1761591043912,-3000.0,0.0002105,2]
[392509320,1761591043922,-3000.0,0.0002106,2]
[392509321,1761591043931,-3000.0,0.0002107,2]
[392509322,1761591043942,-3000.0,0.0002108,2]
[392509323,1761591043952,-3000.0,0.0002109,2]
[392509324,1761591043961,-3000.0,0.000211,2]
[392509325,1761591043970,-250.0,0.000211,10]
[392509326,1761591043980,-3000.0,0.0002111,2]
[392509327,1761591043989,-3000.0,0.0002112,2]
[392509328,1761591043999,-3000.0,0.0002113,2]
[392509329,1761591044008,-3000.0,0.0002114,2]
[392509330,1761591044016,-3000.0,0.0002115,2]
[392509331,1761591044026,-2000.0,0.000213,2]
[392509332,1761591044035,-151.0,0.000213,4]
[392509333,1761591044044,-151.0,0.000213,3]
[392509334,1761591044053,-560.0,0.00021392,2]
[392509335,1761591044062,-1152.0,0.00021466,2]
[392509336,1761591044071,-200.0,0.000218,2]
[392509337,1761591044080,-179.18396853,0.00021817,2]
[392509338,1761591044089,-2756.64089528,0.00021837,2]
[392509339,1761591044098,-15248.04798453,0.000219,2]
[392509340,1761591044107,-306.98511614,0.00021916,2]
[392509341,1761591044116,-500.0,0.00021917,2]
[392509342,1761591044126,-959.62,0.00021917,2]
[392509343,1761591044135,-500.0,0.00021917,2]
[392509344,1761591044144,-500.0,0.00021917,2]
[392509345,1761591044153,-500.0,0.00021917,2]
[392509346,1761591044163,-500.0,0.00021917,2]
[392509347,1761591044268,-500.0,0.00021917,2]
[392509348,1761591044279,-500.0,0.00021917,2]
[392509349,1761591044289,-500.0,0.00021917,2]
[392509350,1761591044299,-500.0,0.00021917,2]
[392509351,1761591044308,-500.0,0.00021917,2]
[392509352,1761591044317,-500.0,0.00021917,2]
[392509353,1761591044326,-500.0,0.00021917,2]
[392509354,1761591044336,-500.0,0.00021917,2]
[392509355,1761591044345,-500.0,0.00021917,2]
[392509356,1761591044355,-500.0,0.00021917,2]
[392509357,1761591044364,-500.0,0.00021917,2]
[392509358,1761591044373,-500.0,0.00021917,2]
[392509359,1761591044388,-500.0,0.00021917,2]
[392509360,1761591044398,-600.61,0.00021917,2]
[392509361,1761591044407,-500.0,0.00021917,2]
[392509362,1761591044416,-1018.89,0.00021917,2]
[392509363,1761591044427,-500.0,0.00021917,2]
[392509364,1761591044437,-500.0,0.00021917,2]
[392509365,1761591044448,-500.0,0.00021917,2]
[392509366,1761591044457,-519.89748973,0.00021917,2]
[392509367,1761591044467,-500.0,0.00021917,2]
[392509368,1761591044477,-500.0,0.00021917,2]
[392509369,1761591044486,-1046.01,0.00021917,2]
[392509370,1761591044495,-500.0,0.00021917,2]
[392509371,1761591044505,-602.7981412,0.00021917,2]
[392509372,1761591044515,-500.0,0.00021917,2]
[392509373,1761591044524,-500.0,0.00021917,2]
[392509374,1761591044534,-500.0,0.00021917,2]
[392509375,1761591044544,-500.0,0.00021917,2]
[392509376,1761591044553,-500.0,0.00021917,2]
[392509377,1761591044563,-500.0,0.00021917,2]
[392509378,1761591044572,-500.0,0.00021917,2]
[392509379,1761591044581,-500.0,0.00021917,2]
[392509380,1761591044591,-500.0,0.00021917,2]
[392509381,1761591044600,-500.0,0.00021917,2]
[392509382,1761591044609,-500.0,0.00021917,2]
[392509383,1761591044618,-502.55578707,0.00021917,2]
[392509384,1761591044628,-1439.99,0.00021917,2]
[392509385,1761591044637,-593.98,0.00021917,2]
[392509386,1761591044646,-500.0,0.00021917,2]
[392509387,1761591044655,-500.0,0.00021917,2]
[392509388,1761591044664,-500.0,0.00021917,2]
[392509389,1761591044674,-500.0,0.00021917,2]
[392509390,1761591044683,-500.0,0.00021917,2]
[392509391,1761591044693,-500.0,0.00021917,2]
[392509392,1761591044703,-500.0,0.00021917,2]
[392509393,1761591044712,-500.0,0.00021917,2]
[392509394,1761591044721,-500.0,0.00021917,2]
[392509395,1761591044731,-500.0,0.00021917,2]
[392509396,1761591044740,-607.51707727,0.00021917,2]
[392509397,1761591044749,-500.0,0.00021917,2]
[392509398,1761591044758,-500.0,0.00021917,2]
[392509399,1761591044767,-500.0,0.00021917,2]
[392509400,1761591044776,-922.18,0.00021917,2]
[392509401,1761591044786,-1362.58,0.00021917,2]
[392509402,1761591044795,-500.0,0.00021917,2]
[392509403,1761591044804,-500.0,0.00021917,2]
[392509404,1761591044813,-777.13,0.00021917,2]
[392509405,1761591044822,-500.0,0.00021917,2]
[392509406,1761591044832,-500.0,0.00021917,2]
[392509407,1761591044841,-500.0,0.00021917,2]
[392509408,1761591044851,-462.18441093,0.00021917,2]
[392509409,1761591044860,-500.0,0.00021917,2]
[392509410,1761591044870,-1111.57,0.00021917,2]
[392509411,1761591044879,-876.16,0.00021917,2]
[392509412,1761591044888,-500.0,0.00021917,2]
[392509413,1761591044897,-500.0,0.00021917,2]
[392509414,1761591044906,-500.0,0.00021917,2]
[392509415,1761591044916,-500.0,0.00021917,2]
[392509416,1761591044925,-500.0,0.00021917,2]